bitfinex/quotes_SOLUSD_20241209
["timestamp","ask_amount","ask_price","bid_price","bid_amount"]
[1733778114201,0.12549,218.95,218.81,0.5475532]
[1733778114515,0.12549,218.93,218.81,0.5475532]
[1733778114871,0.12549,218.91,218.81,0.5475532]
[1733778115291,0.12549,218.89,218.81,0.5475532]
[1733778115593,0.12549,218.87,218.74,13.38670799]
[1733778115970,0.12549,218.85,218.74,13.38670799]
[1733778116182,0.25098,218.85,218.74,13.38670799]
[1733778116387,0.12549,218.78,218.74,13.38670799]
[1733778116588,0.12549,218.78,218.68,10.0]
[1733778116589,70.0,218.7,218.68,10.0]
[1733778116905,23.776884,218.73,218.68,8.43889266]
[1733778117091,23.776884,218.71,218.68,8.43889266]
[1733778117290,71.79531012,218.73,218.68,8.43889266]
[1733778117514,71.79531012,218.73,218.47,5.0]
[1733778117515,23.776884,218.69,218.49,4.47368492]
[1733778117690,10.0,218.67,218.38,3.8499673]
[1733778117885,93.776884,218.66,218.38,39.37884968]
[1733778118190,23.776884,218.59,218.38,3.8499673]
[1733778118385,5.0,218.64,218.38,3.8499673]
[1733778118624,23.776884,218.61,218.38,3.8499673]
[1733778118810,5.0,218.6,218.38,3.8499673]
[1733778119015,28.776884,218.61,218.38,3.8499673]
[1733778119016,23.776884,218.61,218.38,3.8499673]
[1733778119187,75.0,218.65,218.38,3.8499673]
[1733778119523,23.776884,218.61,218.38,3.8499673]
[1733778120030,23.776884,218.64,218.38,3.8499673]
[1733778120245,75.0,218.68,218.38,3.8499673]
[1733778120386,28.902374,218.63,218.38,3.8499673]
[1733778120595,0.12549,218.6,218.38,3.8499673]
[1733778120829,1.88412509,218.67,218.38,3.8499673]
[1733778121129,75.0,218.69,218.38,3.8499673]
[1733778121130,75.0,218.69,218.39,35.52888238]
[1733778121345,5.11583841,218.66,218.42,0.12549]
[1733778121631,5.0,218.71,218.42,23.902374]
[1733778121924,70.0,218.68,218.41,0.12549]
[1733778122236,5.0,218.61,218.38,3.8499673]
[1733778122390,0.12549,218.58,218.38,3.8499673]
[1733778122592,5.0,218.6,218.38,3.8499673]
[1733778122788,5.0,218.56,218.38,3.8499673]
[1733778123126,0.12549,218.52,218.38,3.8499673]
[1733778123330,0.25098,218.52,218.37,4.3038532]
[1733778123626,5.0,218.55,218.37,0.5475532]
[1733778123831,5.0,218.53,218.37,0.5475532]
[1733778124033,5.0,218.49,218.37,0.5475532]
[1733778124322,0.12549,218.47,218.37,0.5475532]
[1733778124629,0.12549,218.46,218.37,0.5475532]
[1733778124930,5.0,218.53,218.37,0.5475532]
[1733778125127,70.0,218.48,218.37,0.5475532]
[1733778125286,0.12549,218.44,218.37,0.5475532]
[1733778125487,5.0,218.53,218.37,0.5475532]
[1733778125688,70.0,218.5,218.37,0.5475532]
[1733778125891,75.0,218.53,218.37,0.5475532]
[1733778126119,23.776884,218.52,218.37,0.5475532]
[1733778126324,0.12549,218.51,218.37,0.5475532]
[1733778126692,23.776884,218.46,218.37,0.5475532]
[1733778126895,70.0,218.43,218.37,0.5475532]
[1733778127124,0.12549,218.42,218.37,0.5475532]
[1733778127327,0.12549,218.48,218.37,0.5475532]
[1733778127632,0.12549,218.43,218.37,0.5475532]
[1733778128419,24.027864,218.43,218.37,0.5475532]
[1733778128629,23.902374,218.4,218.37,0.5475532]
[1733778128996,5.0,218.45,218.37,0.5475532]
[1733778128997,70.0,218.43,218.37,0.5475532]
[1733778129421,0.12549,218.42,218.37,0.5475532]
[1733778129723,0.12549,218.39,218.37,0.5475532]
[1733778129932,37.572374,218.39,218.37,0.5475532]
[1733778130089,37.572374,218.39,218.21,6.4052]
[1733778130090,70.0,218.36,218.21,6.4052]
[1733778130295,70.0,218.43,218.21,6.4052]
[1733778130526,5.0,218.41,218.21,6.4052]
[1733778130832,0.12549,218.39,218.21,6.4052]
[1733778131263,70.0,218.44,218.21,6.4052]
[1733778131464,70.0,218.49,218.23,35.52888238]
[1733778131775,75.0,218.49,218.21,41.93408238]
[1733778131946,70.0,218.46,218.21,6.4052]
[1733778132146,5.0,218.47,218.21,6.4052]
[1733778132147,70.0,218.45,218.21,6.4052]
[1733778132548,0.12549,218.44,218.21,6.4052]
[1733778132880,70.0,218.41,218.21,6.4052]
[1733778133085,0.12549,218.37,218.21,6.4052]
[1733778133565,70.0,218.41,218.21,6.4052]
[1733778133747,70.0,218.45,218.21,6.4052]
[1733778133948,0.12549,218.4,218.21,6.4052]
[1733778134347,0.25098,218.4,218.21,6.4052]
[1733778134542,0.12549,218.4,218.21,6.4052]
[1733778134991,75.0,218.41,218.21,6.4052]
[1733778135185,0.12549,218.36,218.21,6.4052]
[1733778135689,0.25098,218.36,218.17,3.5962]
[1733778135884,5.12549,218.35,218.17,3.5962]
[1733778136268,0.12549,218.35,218.17,3.5962]
[1733778136678,1.8003107,218.36,218.17,3.5962]
[1733778136883,70.0,218.37,218.17,3.5962]
[1733778137091,0.25098,218.36,218.17,3.5962]
[1733778137392,5.12549,218.35,218.17,3.5962]
[1733778137570,5.0,218.33,218.15,0.5475532]
[1733778137772,0.12549,218.32,218.15,0.5475532]
[1733778137975,70.0,218.34,218.15,0.5475532]
[1733778137976,0.12549,218.3,218.15,0.5475532]
[1733778138188,70.0,218.27,218.15,0.5475532]
[1733778138719,75.0,218.2,218.0,36.32987239]
[1733778138904,5.0,218.19,218.0,36.32987239]
[1733778139060,0.12549,218.18,218.0,36.32987239]
[1733778139264,70.0,218.17,218.0,36.32987239]
[1733778139504,70.0,218.2,218.0,36.32987239]
[1733778139799,70.0,218.14,218.0,36.32987239]
[1733778139999,70.0,218.11,218.0,36.32987239]
[1733778140165,70.0,218.08,218.0,36.32987239]
[1733778140366,70.0,218.13,218.0,36.32987239]
[1733778140569,70.0,218.1,218.0,36.32987239]
[1733778141094,70.0,218.03,218.0,36.32987239]
[1733778141590,70.0,217.99,217.98,0.3004678]
[1733778142003,0.12549,217.98,217.97,4.10124029]
[1733778142166,70.0,217.95,217.83,0.05821934]
[1733778142360,70.0,217.99,217.84,7.63789535]
[1733778142562,71.82299839,218.02,217.84,7.63789535]
[1733778142864,75.0,218.03,217.73,3.5061]
[1733778143094,5.313522,218.01,217.73,3.5061]
[1733778143396,0.12549,217.94,217.73,3.5061]
[1733778143596,70.0,217.95,217.73,3.5061]
[1733778143763,0.12549,217.94,217.73,3.5061]
[1733778143963,70.0,217.9,217.73,3.5061]
[1733778144164,5.0,217.89,217.7,0.7087074]
[1733778144379,5.0,217.86,217.7,0.7087074]
[1733778144591,70.0,217.84,217.7,0.7087074]
[1733778145095,5.0,217.83,217.7,0.7087074]
[1733778145290,5.0,217.74,217.7,0.7087074]
[1733778145590,70.0,217.8,217.7,0.7087074]
[1733778145894,70.0,217.71,217.7,0.7087074]
[1733778146095,70.0,217.75,217.7,0.7087074]
[1733778146395,70.0,217.82,217.7,0.7087074]
[1733778146602,70.0,217.85,217.71,35.88512573]
[1733778146767,70.06131896,217.89,217.78,35.88512573]
[1733778147099,70.0,217.96,217.85,5.0]
[1733778147297,70.0,217.84,217.83,5.0]
[1733778147467,70.0,218.04,217.81,10.4593]
[1733778147662,5.0,218.08,217.81,10.4593]
[1733778147869,0.59349698,218.06,217.87,35.88512573]
[1733778148070,70.0,218.05,217.93,35.88512573]
[1733778148395,70.0,218.05,217.76,10.4593]
[1733778148396,70.0,217.97,217.76,10.4593]
[1733778148600,5.0,217.95,217.7,0.7087074]
[1733778148778,4.41749307,217.96,217.73,35.88512573]
[1733778148973,70.0,217.88,217.7,0.7087074]
[1733778149296,75.0,217.88,217.7,0.7087074]
[1733778149468,5.0,217.84,217.7,0.7087074]
[1733778149663,5.0,217.78,217.7,0.7087074]
[1733778149984,0.12549,217.76,217.57,0.05875344]
[1733778150297,70.0,217.71,217.57,0.05875344]
[1733778150466,0.25098,217.67,217.57,0.05875344]
[1733778150671,70.0,217.65,217.57,0.05875344]
[1733778150996,70.0,217.6,217.58,6.78350184]
[1733778151376,70.0,217.6,217.57,0.05875344]
[1733778151897,70.0,217.53,217.41,0.7087074]
[1733778152073,70.0,217.53,217.44,0.07049688]
[1733778152399,70.0,217.5,217.41,0.7087074]
[1733778152895,70.0,217.47,217.41,0.7087074]
[1733778153801,70.0,217.49,217.41,0.7087074]
[1733778153973,70.0,217.46,217.41,0.7087074]
[1733778154369,71.19856088,217.46,217.41,0.7087074]
[1733778154568,70.0,217.46,217.41,0.7087074]
[1733778154786,1.19856088,217.45,217.41,0.7087074]
[1733778154965,0.12549,217.44,217.41,0.7087074]
[1733778155382,1.32405088,217.44,217.41,0.7087074]
[1733778156775,1.19856088,217.44,217.41,0.7087074]
[1733778157488,0.39895756,217.52,217.41,0.7087074]
[1733778157687,1.19856088,217.48,217.43,11.8135287]
[1733778158900,3.05850824,217.48,217.41,0.7087074]
[1733778159476,5.0,217.49,217.41,0.7087074]
[1733778159675,135.3,217.96,217.41,0.7087074]
[1733778159676,5.0,217.51,217.41,0.7087074]
[1733778160071,230.3782032,217.54,217.41,0.7087074]
[1733778160298,5.0,217.53,217.41,0.7087074]
[1733778160811,5.0,217.51,217.41,0.7087074]
[1733778160972,5.0,217.53,217.41,0.7087074]
[1733778161369,5.0,217.51,217.41,0.7087074]
[1733778161798,0.12549,217.5,217.31,0.20432692]
[1733778161995,5.0,217.48,217.31,0.20432692]
[1733778162175,5.0,217.46,217.31,0.20432692]
[1733778162671,0.12549,217.43,217.31,0.20432692]
[1733778162877,5.0,217.42,217.31,0.20432692]
[1733778163205,0.12549,217.43,217.31,0.20432692]
[1733778163206,5.0,217.38,217.31,0.20432692]
[1733778163401,5.0,217.4,217.31,0.20432692]
[1733778163614,0.25098,217.39,217.23,0.5]
[1733778163785,0.25098,217.39,216.78,230.3782032]
[1733778163786,5.0,217.26,216.83,11.5297]
[1733778163975,5.0,217.26,217.0,35.88512573]
[1733778164300,5.0,217.22,216.81,11.5305]
[1733778164507,5.0,217.22,216.93,35.88512573]
[1733778164803,5.0,217.17,216.91,35.88512573]
[1733778165017,5.0,217.14,216.89,35.88512573]
[1733778165207,5.0,217.14,216.65,23.92709599]
[1733778165402,5.0,217.13,216.82,0.08159512]
[1733778165600,5.0,217.08,216.65,23.92709599]
[1733778165819,5.0,217.03,216.71,0.13159512]
[1733778166111,5.0,217.03,216.91,35.88512573]
[1733778166307,5.0,217.08,216.68,23.01761652]
[1733778166503,5.0,217.02,216.85,35.88512573]
[1733778166705,0.25098,217.07,216.65,23.92709599]
[1733778167012,0.25098,217.07,216.64,10.0404]
[1733778167013,0.12549,217.08,216.73,0.08159512]
[1733778167210,5.0,217.12,216.7,23.07977515]
[1733778167211,5.0,217.04,216.71,0.08159512]
[1733778167512,5.0,217.02,216.71,0.08159512]
[1733778167714,5.0,216.99,216.81,35.88512573]
[1733778167900,5.0,216.99,216.82,35.88512573]
[1733778168102,5.0,217.01,216.85,10.0404]
[1733778168301,230.3782032,217.16,216.85,10.0404]
[1733778168302,0.12549,216.98,216.85,10.0404]
[1733778168487,5.0,216.97,216.85,10.0404]
[1733778168693,0.12549,217.01,216.85,10.0404]
[1733778169106,5.0,217.02,216.86,35.88512573]
[1733778169300,5.0,217.04,216.86,35.88512573]
[1733778169516,0.12549,217.06,216.94,35.88512573]
[1733778169692,5.0,217.07,216.91,35.88512573]
[1733778169892,0.12549,217.06,216.85,10.0404]
[1733778170100,5.0,217.07,216.94,35.88512573]
[1733778170388,5.0,217.14,216.93,35.88512573]
[1733778170612,5.0,217.13,216.93,35.88512573]
[1733778170910,5.0,217.07,216.94,35.88512573]
[1733778171112,5.0,217.08,216.98,35.88512573]
[1733778171412,5.0,217.06,216.85,10.0404]
[1733778171611,1.88881893,217.08,216.85,10.0404]
[1733778171820,5.0,217.03,216.63,23.68202461]
[1733778172022,5.0,217.0,216.76,35.88512573]
[1733778172213,5.0,217.0,216.7,35.88512573]
[1733778172400,5.0,216.99,216.73,35.88512573]
[1733778172601,5.0,216.91,216.69,35.88512573]
[1733778172800,5.0,216.87,216.69,35.88512573]
[1733778173096,230.3782032,217.07,216.47,0.31321306]
[1733778173097,5.0,216.82,216.47,0.31321306]
[1733778173601,5.0,216.79,216.47,0.31321306]
[1733778174121,5.0,216.72,216.47,0.31321306]
[1733778174320,5.0,216.69,216.47,0.31321306]
[1733778174524,5.0,216.63,216.47,0.31321306]
[1733778175409,5.0,216.59,216.47,0.31321306]
[1733778175613,5.0,216.56,216.47,0.31321306]
[1733778175810,5.07549,216.56,216.47,0.31321306]
[1733778176124,4.95,216.56,216.47,0.31321306]
[1733778176323,4.95,216.5,216.47,0.31321306]
[1733778176501,4.95,216.49,216.47,36.19833879]
[1733778176701,4.95,216.55,216.47,0.31321306]
[1733778177219,4.95,216.58,216.47,0.31321306]
[1733778177532,4.95,216.57,216.47,0.31321306]
[1733778177731,4.95,216.55,216.48,35.88512573]
[1733778177906,4.95,216.55,216.5,35.88512573]
[1733778178226,4.95,216.64,216.5,35.88512573]
[1733778178429,4.95,216.62,216.38,4.04705087]
[1733778178606,0.12549,216.64,216.51,35.88512573]
[1733778178921,10.18192687,216.69,216.51,35.88512573]
[1733778178922,4.95,216.69,216.51,35.88512573]
[1733778179123,4.95,216.67,216.51,26.31574774]
[1733778179310,4.95,216.68,216.51,35.88512573]
[1733778179497,4.95,216.65,216.52,0.025]
[1733778179697,4.95,216.62,216.4,0.05]
[1733778179897,4.95,216.57,216.49,35.88512573]
[1733778180117,4.95,216.57,216.38,4.04705087]
[1733778180318,4.95,216.55,216.46,35.88512573]
[1733778180519,4.95,216.49,216.48,35.88512573]
[1733778180719,4.95,216.49,216.46,35.88512573]
[1733778180935,1.87754048,216.65,216.38,4.04705087]
[1733778180936,4.95,216.51,216.38,4.04705087]
[1733778181100,4.95,216.51,216.44,35.88512573]
[1733778181300,4.95,216.46,216.41,35.88512573]
[1733778181715,4.95,216.46,216.43,35.88512573]
[1733778181921,4.95,216.46,216.41,35.88512573]
[1733778182131,4.95,216.48,216.41,35.88512573]
[1733778182425,1.87716858,216.61,216.38,4.04705087]
[1733778182426,4.95,216.51,216.38,39.9321766]
[1733778182931,4.95,216.55,216.38,4.04705087]
[1733778183434,4.95,216.46,216.38,4.04705087]
[1733778183817,4.95,216.48,216.38,4.04705087]
[1733778184209,4.95,216.45,216.38,4.04705087]
[1733778184620,4.95,216.5,216.38,4.04705087]
[1733778185816,4.95,216.48,216.38,4.04705087]
[1733778186139,11.15544223,216.72,216.38,4.04705087]
[1733778186140,4.95,216.5,216.42,35.88512573]
[1733778186316,4.95,216.5,216.39,6.6531]
[1733778186711,4.95,216.5,216.38,4.04705087]
[1733778186912,4.95,216.51,216.38,4.04705087]
[1733778187238,4.95,216.51,216.39,3.8475]
[1733778187417,4.95,216.51,216.4,35.88512573]
[1733778187738,4.95,216.51,216.43,35.88512573]
[1733778187936,36.67778247,216.53,216.38,4.04705087]
[1733778188238,36.67778247,216.49,216.38,3.04705087]
[1733778188538,36.67778247,216.47,216.38,3.04705087]
[1733778189142,4.95,216.43,216.38,3.04705087]
[1733778189638,4.95,216.41,216.38,3.04705087]
[1733778190209,4.95,216.39,216.38,3.04705087]
[1733778190609,5.07549,216.39,216.24,0.05]
[1733778190839,0.12549,216.38,216.32,36.67778247]
[1733778191019,0.25098,216.38,216.32,36.67778247]
[1733778191339,0.25098,216.38,215.92,0.22093531]
[1733778191340,0.12549,216.35,216.3,36.67778247]
[1733778191531,4.95,216.36,216.14,0.05]
[1733778191735,4.95,216.36,216.32,36.67778247]
[1733778192035,4.95,216.34,216.08,0.05]
[1733778192237,4.95,216.34,215.91,1.78769309]
[1733778192238,4.95,216.37,216.1,0.05]
[1733778192736,4.95,216.36,216.13,0.05]
[1733778192940,5.0,216.34,216.02,0.05366813]
[1733778193236,5.0,216.36,216.31,36.57778247]
[1733778193439,5.0,216.36,216.07,231.35604556]
[1733778193636,5.0,216.36,216.04,36.67778247]
[1733778193637,5.0,216.38,216.04,231.35604556]
[1733778193817,5.0,216.38,216.03,18.2369]
[1733778193818,36.67778247,216.32,216.03,18.2369]
[1733778194012,5.0,216.38,216.04,3.9827]
[1733778194206,23.99820414,216.55,216.02,0.05366813]
[1733778194207,36.67778247,216.32,216.06,6.6647]
[1733778194511,5.0,216.35,216.2,36.67778247]
[1733778194712,5.0,216.35,216.08,6.0905]
[1733778194912,5.0,216.35,216.02,0.05366813]
[1733778194913,36.67778247,216.29,216.19,36.67778247]
[1733778195135,5.0,216.41,216.04,6.0905]
[1733778195339,36.67778247,216.32,216.07,6.0905]
[1733778195548,5.0,216.36,216.09,6.0905]
[1733778195731,36.67778247,216.31,216.2,36.67778247]
[1733778195937,36.67778247,216.33,216.23,36.67778247]
[1733778196226,36.67778247,216.29,216.09,6.0905]
[1733778196423,36.67778247,216.29,216.08,3.9022]
[1733778196939,36.67778247,216.27,216.08,3.9022]
[1733778197142,36.67778247,216.27,216.16,36.67778247]
[1733778197321,36.67778247,216.27,216.08,3.9022]
[1733778197835,5.0,216.28,216.02,0.05366813]
[1733778198343,5.0,216.23,216.02,0.05366813]
[1733778198540,36.67778247,216.13,216.02,0.05366813]
[1733778198713,36.67778247,216.1,216.02,0.05366813]
[1733778198910,36.67778247,216.08,215.99,36.67778247]
[1733778199140,5.0,216.19,215.72,0.075]
[1733778199311,231.35604556,216.37,215.52,23.62124063]
[1733778199312,36.67778247,216.12,215.73,4.7726189]
[1733778199510,36.67778247,216.06,215.74,6.7168]
[1733778199728,23.32466809,216.08,215.74,11.4894189]
[1733778199928,36.67778247,216.04,215.75,4.7726189]
[1733778200138,36.67778247,216.0,215.75,4.7726189]
[1733778200338,5.0,216.08,215.75,4.7726189]
[1733778200526,4.1157,216.09,215.63,19.23680313]
[1733778200527,36.67778247,215.87,215.67,23.1825]
[1733778200722,10.7366,215.88,215.61,4.5126189]
[1733778200930,4.1157,215.88,215.65,0.075]
[1733778201129,36.67778247,215.8,215.53,34.7979]
[1733778201324,36.67778247,215.74,215.54,0.025]
[1733778201541,4.1157,215.54,215.29,23.84829746]
[1733778201733,36.67778247,215.49,215.31,36.67778247]
[1733778201934,36.67778247,215.48,215.44,18.557462]
[1733778202120,5.0,215.59,215.44,4.100662]
[1733778202320,5.0,215.6,215.29,23.84829746]
[1733778202531,5.0,215.58,215.28,0.06356032]
[1733778202737,36.67778247,215.63,215.29,11.6122]
[1733778202939,36.67778247,215.6,215.28,0.06356032]
[1733778203143,10.7975,215.6,215.28,0.06356032]
[1733778203350,5.0,215.43,215.28,0.06356032]
[1733778203552,5.0,215.48,215.28,0.06356032]
[1733778203922,41.67778247,215.47,215.28,0.06356032]
[1733778204123,43.16098247,215.35,215.28,0.06356032]
[1733778204422,4.3143,215.34,215.14,36.67778247]
[1733778204620,36.67778247,215.25,215.1,11.6221]
[1733778204824,36.67778247,215.15,215.11,10.5]
[1733778205052,4.3143,215.13,215.02,0.06409442]
[1733778205235,231.35604556,215.28,214.03,231.35604557]
[1733778205236,6.6764,215.11,214.85,15.78683548]
[1733778205448,36.67778247,215.05,214.97,11.6221]
[1733778205630,231.35604556,215.04,214.7,23.16671185]
[1733778205825,226.61257025,214.81,214.74,3.6174287]
[1733778206031,6.2322935,215.03,214.68,23.00193846]
[1733778206336,231.35604556,214.8,214.34,1.1282443]
[1733778206638,2.55607491,215.35,214.34,1.1282443]
[1733778206639,37.04506141,214.46,214.34,1.1282443]
[1733778206952,4.79217457,214.45,214.1,23.34243857]
[1733778207137,43.0557682,214.45,214.08,0.167]
[1733778207454,5.08014252,214.44,214.14,23.3481]
[1733778207654,37.04506141,214.15,213.96,22.88445596]
[1733778207855,37.04506141,214.17,213.86,46.7576]
[1733778208032,2.40832546,214.14,213.54,23.41726931]
[1733778208352,3.53138934,214.13,213.56,23.4321907]
[1733778208561,10.6039,214.12,212.92,27.32]
[1733778208854,6.6487,214.0,213.26,23.09982851]
[1733778209035,37.04506141,213.96,213.29,0.12549]
[1733778209349,233.84933631,213.71,212.93,38.97139751]
[1733778209553,23.03058278,213.94,212.94,23.13356514]
[1733778209755,233.84933631,214.01,212.93,15.02238292]
[1733778209756,5.0,213.96,212.93,15.02238292]
[1733778210057,23.43309954,213.95,212.93,14.15062722]
[1733778210263,37.04506141,213.87,213.05,23.4686]
[1733778210439,37.04506141,213.79,213.05,23.4686]
[1733778210760,233.84933631,213.81,213.05,23.4686]
[1733778210966,5.0,214.0,213.05,23.4686]
[1733778211258,233.84933631,214.27,213.05,23.4686]
[1733778211259,5.0,214.01,213.12,37.04506141]
[1733778211432,5.0,214.01,213.05,23.4686]
[1733778211433,5.0,213.88,213.05,23.4686]
[1733778211637,233.84933631,213.49,213.05,23.4686]
[1733778211827,5.0,213.8,213.06,5.0]
[1733778211828,23.30077883,213.39,213.06,5.0]
[1733778212022,5.0,213.65,213.07,35.1996]
[1733778212224,5.0,213.79,213.07,58.666]
[1733778212425,5.0,213.87,213.08,6.5443]
[1733778212627,5.0,213.87,213.59,37.04506141]
[1733778212832,5.0,213.87,213.73,74.09012282]
[1733778213046,5.0,213.87,213.02,233.84933631]
[1733778213047,37.04506141,214.23,213.49,6.5443]
[1733778213358,4.43e-05,214.12,213.5,4.48787559]
[1733778213539,5.0,214.62,213.5,4.48787559]
[1733778213733,5.0,214.58,213.95,23.3699]
[1733778213932,23.36721401,215.27,213.95,29.9142]
[1733778213933,5.0,214.94,213.95,29.9142]
[1733778214253,4.43e-05,214.55,213.95,20.1299]
[1733778215254,4.43e-05,214.55,213.85,11.6904]
[1733778215255,22.9747893,214.55,213.69,18.699205]
[1733778215448,22.9747893,214.55,213.06,23.15763905]
[1733778215449,5.0,214.38,213.06,23.15763905]
[1733778215656,5.0,214.13,213.06,23.15763905]
[1733778215961,5.0,213.94,213.0,5.77958409]
[1733778216269,5.0,213.74,213.07,23.4664]
[1733778216465,5.0,213.74,212.96,35.2177]
[1733778216466,37.69707685,213.71,212.96,23.4785]
[1733778216766,23.07275601,213.62,212.62,23.56582357]
[1733778217059,5.0,213.5,212.62,23.56582357]
[1733778217244,5.0,213.5,212.61,1.1282443]
[1733778217245,5.0,213.55,212.64,23.60082652]
[1733778217439,5.0,213.48,212.7,23.76430386]
[1733778217650,5.0,213.46,212.7,23.76430386]
[1733778217855,5.0,213.5,212.72,23.65324884]
[1733778218055,5.0,213.41,212.72,23.65324884]
[1733778218357,37.69707685,213.19,212.64,23.60082652]
[1733778218674,5.0,213.43,212.66,23.71833915]
[1733778218873,5.0,213.07,212.66,23.71833915]
[1733778219172,5.0,213.19,212.62,11.758]
[1733778219347,5.0,213.16,212.62,11.758]
[1733778219659,5.0,212.93,212.61,1.1282443]
[1733778219862,5.0,212.67,212.61,4.43e-05]
[1733778220048,99.3695681,212.62,212.19,11.7818]
[1733778220255,37.69707685,212.52,212.01,5.0]
[1733778220472,5.0,212.25,211.9,1.50286485]
[1733778220773,5.0,212.25,211.65,5.0]
[1733778220941,5.0,212.24,211.61,5.0]
[1733778221142,6.7007,212.45,211.66,0.143]
[1733778221476,6.7007,212.45,211.66,0.547]
[1733778221477,5.0,212.39,211.66,0.547]
[1733778221639,5.0,212.36,211.66,0.547]
[1733778221845,37.69707685,211.95,211.67,11.8108]
[1733778222051,5.0,212.37,211.67,11.8108]
[1733778222273,5.0,212.42,211.68,0.547]
[1733778222567,5.0,212.95,211.86,3.9444]
[1733778222770,5.0,213.06,211.86,3.9444]
[1733778222973,5.0,212.85,211.87,0.24]
[1733778223154,468.08283954,212.62,211.87,0.24]
[1733778223359,3.5,212.26,211.87,0.24]
[1733778223680,37.69707685,212.18,211.87,0.24]
[1733778223970,3.5,212.33,211.75,0.143]
[1733778224183,35.3122,212.39,211.76,13.3058]
[1733778224343,35.3122,212.39,211.76,11.8058]
[1733778224549,11.7707,212.39,211.89,1.5]
[1733778224751,3.5,212.24,211.76,11.8058]
[1733778224973,3.5,212.08,211.75,0.143]
[1733778225176,0.36352107,212.17,211.61,1.1282]
[1733778225445,0.36352107,212.17,211.66,1.5]
[1733778225750,23.38353998,211.93,211.69,1.5]
[1733778225971,37.69707685,211.97,211.67,11.8108]
[1733778226164,23.96718338,211.94,211.67,10.6826]
[1733778226349,3.0,212.09,211.68,2.0]
[1733778226674,2.86352107,212.56,211.8,2.13647893]
[1733778226882,3.2475356,212.42,211.79,6.9327]
[1733778227178,3.56e-05,212.42,212.21,2.13647893]
[1733778227367,23.9754144,212.62,212.24,3.13647893]
[1733778227584,23.9377572,213.07,212.43,3.13647893]
[1733778227751,23.07967411,212.9,212.49,37.69707685]
[1733778228078,23.07967411,212.9,212.2,4.307]
[1733778228079,1.88479431,213.0,212.21,23.5615]
[1733778228257,4.50009431,212.94,212.21,33.1105]
[1733778228451,4.00009431,212.86,212.21,33.1105]
[1733778228677,9.56937799,212.93,212.27,10.6863]
[1733778228884,10.7249,213.22,212.35,1.49990569]
[1733778229079,10.7249,213.22,212.21,56.672]
[1733778229080,3.50009431,212.97,212.24,1.49990569]
[1733778229260,37.69707685,212.29,212.12,0.31322256]
[1733778229456,23.46164801,212.44,211.95,4.307]
[1733778229457,37.69707685,212.23,211.95,4.307]
[1733778229661,37.69707685,212.2,211.96,11.7946]
[1733778229852,37.69707685,212.2,211.79,5.0]
[1733778230051,4.52500002,212.44,211.91,0.47499998]
[1733778230265,6.8866,212.58,211.89,0.47499998]
[1733778230475,4.52500002,212.49,185.77,0.11214088]
[1733778230663,4.5,212.28,211.72,0.5]
[1733778230856,5.0,212.14,210.91,23.25830169]
[1733778231054,5.0,212.28,211.21,23.36789728]
[1733778231282,2.2564886,212.63,211.92,37.69707685]
[1733778231283,37.19707685,212.35,211.92,37.69707685]
[1733778231581,37.19707685,212.35,211.35,468.08283954]
[1733778231582,2.2564886,212.58,211.93,4.86497587]
[1733778232079,5.0,212.52,211.84,5.14223698]
[1733778232376,5.0,212.18,210.85,26.02098969]
[1733778232676,5.0,212.19,211.17,23.8068663]
[1733778232848,38.2015301,212.25,211.21,23.05653645]
[1733778233050,38.2015301,212.02,211.28,0.12549]
[1733778233285,38.2015301,212.02,211.33,6.3793]
[1733778233447,38.2015301,211.96,211.33,6.3793]
[1733778233646,5.0,211.94,211.33,6.3793]
[1733778233882,5.0,212.09,211.34,3.74600953]